Workbook

Sheet Ark1
B4: Budsjett Ny etasje | C4: Grunnflate (m2) = 90 | D4: Takflate (m2) | E4: 150
B5: Ferdig utvendig:
B6: Produkt | C6: Butikk | D6: Antall (m2, stk) | E6: Pris | G6: Total
B7: Søknad kommune | D7: 1 | E7: 10000 | G7: =D7*E7 -> 10000 | I7: Elektrisk:
B8: Takstoler (A-stol, 8,7m, 38grader) | C8: Norsk Tre AS | D8: 22 | E8: 2500 | G8: =D8*E8 -> 55000
B9: Forenklet undertak | D9: =E4 -> 150 | E9: 50 | G9: =D9*E9 -> 7500 | I9: Rør/kabler | J9: =3000 -> 3000
B10: Takstein | C10: Carlsen & Fritzøe | D10: =E4 -> 150 | E10: 100 | G10: 15000 | I10: JFA | J10: =4*500 -> 2000
B11: Lekter til tak, beslag etc. | C11: Carlsen & Fritzøe | D11: =E4 -> 150 | E11: 100 | G11: 15000 | I11: Sikringskap | J11: =2000 -> 2000
B12: Muring av ny pipe | D12: 1 | E12: 25000 | G12: 25000 | I12: Brytere | J12: =10*100 -> 1000
B13: Takvindu | C13: Velux | D13: 1 | E13: 12000 | G13: 12000 | I13: Stikk | J13: =500*3 -> 1500
B14: Vindu gavl/ark | D14: 6 | E14: 5000 | G14: 30000 | I14: Lys | J14: =6000 -> 6000
B15: Reisverk utvendig - 36x148 | C15: Byggmax | D15: 100 | E15: 14 | G15: 1400 | I15: Varmekabel | J15: 3000
B16: Vindsperre | D16: 2 | E16: 1000 | G16: 2000 | I16: Termostat | J16: 1000
B17: Liggende kledning dobbelfals staff | C17: Monter | D17: 50 | E17: 150 | G17: =D17*E17 -> 7500 | I17: Totalt | J17: =SUM(J9:J16) -> 19500
B18: Isolasjon 200mm | C18: Monter | D18: 300 | E18: 90 | G18: 27000
B19: Fuktsperre | C19: Byggmax | D19: 5 | E19: 500 | G19: 2500 | I19: Røropplegg:
B20: Elektrisk | D20: 1 | E20: =J17 -> 19500 | G20: 19500
B21: Røropplegg | D21: 1 | E21: =J28 -> 11000 | G21: 11000 | I21: Avløp | J21: =3000 -> 3000
B22: Ny trapp | D22: 1 | E22: 60000 | G22: =D22*E22 -> 60000 | I22: Rør i rør | J22: =2000 -> 2000
B23: Nytt trapperom 1. etasje | D23: 1 | E23: 20000 | G23: 20000 | I23: Bokser | J23: =1500 -> 1500
B24: Reisverk innvendig - 48x98 | D24: 200 | E24: 14 | G24: =D24*E24 -> 2800 | I24: Bokser | J24: =1500 -> 1500
B25: Innvendig tak 1. etasje | D25: 90 | E25: 150 | G25: 13500 | I25: Sluk | J25: =1000 -> 1000
B26: Spon gulv 2. etasje | D26: 90 | E26: 90 | G26: 8100 | I26: Fordeler | J26: =1000 -> 1000
B27: Laminat 2. etasje | D27: 90 | E27: 250 | G27: 22500 | I27: Div | J27: =1000 -> 1000
B28: MDF plater vegg | D28: 200 | E28: 100 | G28: 20000 | I28: Totalt | J28: =SUM(J21:J27) -> 11000
B29: Snekker 1 måned | D29: 165 | E29: 850 | G29: 140250
B30: Div. | D30: 1 | E30: 15000 | G30: 15000
F31: SUM | G31: =SUM(G8:G30) -> 532550

Sheet Ark2

Sheet Ark3
